[Event "Late-Titled-Tuesday-Blitz-April-16-2024"]
[Site "Chess.com"]
[Date "2024.04.16"]
[Round "6"]
[White "Caracal3000"]
[Black "cristiano78"]
[Result "1-0"]
[WhiteElo "2487"]
[BlackElo "2279"]
[TimeControl "180+1"]
[EndTime "15:00:08 PDT"]
[Termination "Caracal3000 won by checkmate"]

1. e4 {[%clk 0:03:00.9]} 1... c5 {[%clk 0:02:59.8]} 2. Nf3 {[%clk 0:03:01.1]}
2... d6 {[%clk 0:02:59.8]} 3. d4 {[%clk 0:03:01.9]} 3... cxd4 {[%clk 0:03:00.3]}
4. Nxd4 {[%clk 0:03:02.8]} 4... Nf6 {[%clk 0:02:59.3]} 5. Nc3 {[%clk 0:03:03.5]}
5... a6 {[%clk 0:02:59.3]} 6. f4 {[%clk 0:03:04.2]} 6... e6 {[%clk 0:02:55]} 7.
Qf3 {[%clk 0:03:03.7]} 7... Be7 {[%clk 0:02:52.8]} 8. Be3 {[%clk 0:03:04.1]}
8... O-O {[%clk 0:02:53]} 9. O-O-O {[%clk 0:03:04.7]} 9... Qc7 {[%clk
0:02:52.8]} 10. g4 {[%clk 0:03:05]} 10... Nc6 {[%clk 0:02:52.2]} 11. g5 {[%clk
0:03:05.2]} 11... Nd7 {[%clk 0:02:52]} 12. h4 {[%clk 0:02:41.8]} 12... Nxd4
{[%clk 0:02:37.3]} 13. Bxd4 {[%clk 0:02:40.8]} 13... b5 {[%clk 0:02:34.9]} 14.
Bd3 {[%clk 0:02:32.6]} 14... Bb7 {[%clk 0:02:34.4]} 15. h5 {[%clk 0:02:31.9]}
15... Nc5 {[%clk 0:02:33.8]} 16. Kb1 {[%clk 0:02:28.6]} 16... b4 {[%clk
0:02:33.6]} 17. Ne2 {[%clk 0:02:28.6]} 17... a5 {[%clk 0:02:29.1]} 18. Ng3
{[%clk 0:02:21.3]} 18... Rfd8 {[%clk 0:02:22.6]} 19. g6 {[%clk 0:02:06]} 19...
fxg6 {[%clk 0:02:12.4]} 20. hxg6 {[%clk 0:02:05.5]} 20... h6 {[%clk 0:02:11.7]}
21. Nh5 {[%clk 0:02:03.1]} 21... e5 {[%clk 0:02:04.1]} 22. fxe5 {[%clk
0:01:37.9]} 22... Rf8 {[%clk 0:02:03.9]} 23. Bc4+ {[%clk 0:01:33.1]} 23... Kh8
{[%clk 0:01:57.8]} 24. exd6 {[%clk 0:01:29]} 24... Bxd6 {[%clk 0:01:45]} 25.
Nxg7 {[%clk 0:01:22.1]} 25... Rxf3 {[%clk 0:01:41.4]} 26. Rxh6# {[%clk
0:01:20.4]} 1-0

[Event "Late-Titled-Tuesday-Blitz-April-16-2024"]
[Site "Chess.com"]
[Date "2024.04.16"]
[Round "6"]
[White "rynos0411"]
[Black "FairChess_on_YouTube"]
[Result "0-1"]
[WhiteElo "2610"]
[BlackElo "3076"]
[TimeControl "180+1"]
[EndTime "15:00:16 PDT"]
[Termination "FairChess_on_YouTube won by resignation"]

1. d4 {[%clk 0:03:00.9]} 1... Nf6 {[%clk 0:02:59.8]} 2. c4 {[%clk 0:02:59.2]}
2... g6 {[%clk 0:03:00.3]} 3. Nc3 {[%clk 0:02:59.2]} 3... Bg7 {[%clk 0:03:00.7]}
4. e4 {[%clk 0:02:59.6]} 4... d6 {[%clk 0:03:01.2]} 5. h3 {[%clk 0:02:59.9]}
5... O-O {[%clk 0:03:01.4]} 6. Be3 {[%clk 0:03:00.3]} 6... Nc6 {[%clk
0:02:59.6]} 7. Nge2 {[%clk 0:02:54.8]} 7... Re8 {[%clk 0:02:58.9]} 8. d5 {[%clk
0:02:42.8]} 8... Ne5 {[%clk 0:02:59]} 9. Ng3 {[%clk 0:02:43.3]} 9... e6 {[%clk
0:02:55.1]} 10. Qd2 {[%clk 0:02:43.2]} 10... exd5 {[%clk 0:02:52.3]} 11. cxd5
{[%clk 0:02:33.4]} 11... c6 {[%clk 0:02:52.6]} 12. f4 {[%clk 0:02:20.7]} 12...
Ned7 {[%clk 0:02:46.8]} 13. dxc6 {[%clk 0:02:18.2]} 13... bxc6 {[%clk
0:02:45.3]} 14. Qxd6 {[%clk 0:02:18.3]} 14... Qa5 {[%clk 0:02:43.2]} 15. e5
{[%clk 0:01:52.3]} 15... Nd5 {[%clk 0:02:40.2]} 16. Bd2 {[%clk 0:01:52.4]} 16...
Nxe5 {[%clk 0:02:39.4]} 17. fxe5 {[%clk 0:01:43.1]} 17... Bxe5 {[%clk
0:02:18.8]} 18. Qxc6 {[%clk 0:01:43.3]} 18... Bb7 {[%clk 0:02:07.5]} 19. Qb5
{[%clk 0:00:44.3]} 19... Bxc3+ {[%clk 0:02:04]} 20. Kd1 {[%clk 0:00:41.1]} 20...
Bxd2 {[%clk 0:02:03.2]} 0-1

[Event "Late-Titled-Tuesday-Blitz-April-16-2024"]
[Site "Chess.com"]
[Date "2024.04.16"]
[Round "6"]
[White "Chess_Star1234"]
[Black "ploxoi"]
[Result "1-0"]
[WhiteElo "2526"]
[BlackElo "2401"]
[TimeControl "180+1"]
[EndTime "15:00:28 PDT"]
[Termination "Chess_Star1234 won by resignation"]

1. d4 {[%clk 0:02:57.7]} 1... d5 {[%clk 0:02:58.1]} 2. c4 {[%clk 0:02:57.7]}
2... e6 {[%clk 0:02:57.2]} 3. Nc3 {[%clk 0:02:57.9]} 3... c6 {[%clk 0:02:56.5]}
4. Nf3 {[%clk 0:02:57.9]} 4... dxc4 {[%clk 0:02:56.1]} 5. a4 {[%clk 0:02:58.6]}
5... Bb4 {[%clk 0:02:49.8]} 6. e3 {[%clk 0:02:59.1]} 6... b5 {[%clk 0:02:49.6]}
7. Bd2 {[%clk 0:02:58.6]} 7... a5 {[%clk 0:02:47.6]} 8. axb5 {[%clk 0:02:58.8]}
8... Bxc3 {[%clk 0:02:47.5]} 9. Bxc3 {[%clk 0:02:59.7]} 9... cxb5 {[%clk
0:02:47.6]} 10. b3 {[%clk 0:03:00.6]} 10... Bb7 {[%clk 0:02:45.1]} 11. bxc4
{[%clk 0:03:00.9]} 11... b4 {[%clk 0:02:45.7]} 12. Bb2 {[%clk 0:03:01.6]} 12...
Nf6 {[%clk 0:02:46]} 13. Bd3 {[%clk 0:03:02.1]} 13... O-O {[%clk 0:02:44.3]} 14.
O-O {[%clk 0:03:02.8]} 14... Nbd7 {[%clk 0:02:40.6]} 15. c5 {[%clk 0:03:01.4]}
15... Qc7 {[%clk 0:02:35.9]} 16. Nd2 {[%clk 0:03:00.8]} 16... Nd5 {[%clk
0:02:33.9]} 17. Nc4 {[%clk 0:03:00]} 17... N7f6 {[%clk 0:02:27]} 18. Qc2 {[%clk
0:02:28.8]} 18... h6 {[%clk 0:02:18]} 19. h3 {[%clk 0:02:16]} 19... Bc6 {[%clk
0:02:16.8]} 20. Rfb1 {[%clk 0:01:14.4]} 20... Rfb8 {[%clk 0:02:12.2]} 21. Bc1
{[%clk 0:01:10.2]} 21... Nc3 {[%clk 0:02:05.2]} 22. Rb2 {[%clk 0:01:06]} 22...
a4 {[%clk 0:01:54.4]} 23. Nb6 {[%clk 0:01:05.5]} 23... Ra6 {[%clk 0:01:51.6]}
24. Rxb4 {[%clk 0:01:03.6]} 24... Ncd5 {[%clk 0:01:43.1]} 25. Nxd5 {[%clk
0:01:02.6]} 25... Nxd5 {[%clk 0:01:44]} 26. Rxb8+ {[%clk 0:01:01.9]} 26... Qxb8
{[%clk 0:01:44.6]} 27. Bxa6 {[%clk 0:01:02.4]} 1-0

[Event "Late-Titled-Tuesday-Blitz-April-16-2024"]
[Site "Chess.com"]
[Date "2024.04.16"]
[Round "6"]
[White "artin10862"]
[Black "AlexeiShirov"]
[Result "0-1"]
[WhiteElo "2933"]
[BlackElo "2831"]
[TimeControl "180+1"]
[EndTime "15:00:31 PDT"]
[Termination "AlexeiShirov won by resignation"]

1. c4 {[%clk 0:03:00.9]} 1... c6 {[%clk 0:02:59.2]} 2. d4 {[%clk 0:02:51.1]}
2... d5 {[%clk 0:02:59.2]} 3. Nf3 {[%clk 0:02:51.5]} 3... Nf6 {[%clk 0:02:59.3]}
4. Nc3 {[%clk 0:02:51.5]} 4... e6 {[%clk 0:02:59.5]} 5. g3 {[%clk 0:02:35.8]}
5... dxc4 {[%clk 0:02:59.1]} 6. Bg2 {[%clk 0:02:35.8]} 6... b5 {[%clk
0:02:59.1]} 7. O-O {[%clk 0:02:30.1]} 7... Bb7 {[%clk 0:02:58.7]} 8. e4 {[%clk
0:02:29.8]} 8... b4 {[%clk 0:02:55.8]} 9. e5 {[%clk 0:02:29.1]} 9... bxc3 {[%clk
0:02:46.4]} 10. exf6 {[%clk 0:02:28.6]} 10... Qxf6 {[%clk 0:02:42.5]} 11. bxc3
{[%clk 0:02:22.7]} 11... Nd7 {[%clk 0:02:41.9]} 12. Rb1 {[%clk 0:02:15.4]} 12...
Nb6 {[%clk 0:02:33.5]} 13. a4 {[%clk 0:02:08.7]} 13... Ba6 {[%clk 0:02:33.4]}
14. Ne5 {[%clk 0:01:22.3]} 14... Nd5 {[%clk 0:02:32.7]} 15. Qc2 {[%clk
0:01:11.8]} 15... Bd6 {[%clk 0:02:28]} 16. Nxc6 {[%clk 0:01:00.2]} 16... O-O
{[%clk 0:02:26.7]} 17. h4 {[%clk 0:01:00.1]} 17... h6 {[%clk 0:02:25.3]} 18. Re1
{[%clk 0:00:57.5]} 18... Rfc8 {[%clk 0:02:14.1]} 19. Ne5 {[%clk 0:00:56.2]}
19... Qd8 {[%clk 0:02:06.9]} 20. Be4 {[%clk 0:00:51.2]} 20... Rab8 {[%clk
0:02:03]} 21. Rb3 {[%clk 0:00:35.4]} 21... cxb3 {[%clk 0:02:01.6]} 0-1

[Event "Late-Titled-Tuesday-Blitz-April-16-2024"]
[Site "Chess.com"]
[Date "2024.04.16"]
[Round "6"]
[White "Attacker_2006"]
[Black "KorolDimitriy75"]
[Result "1-0"]
[WhiteElo "2509"]
[BlackElo "2325"]
[TimeControl "180+1"]
[EndTime "15:00:33 PDT"]
[Termination "Attacker_2006 won on time"]

1. e4 {[%clk 0:03:00.9]} 1... c5 {[%clk 0:02:57.2]} 2. Nc3 {[%clk 0:02:57.7]}
2... g6 {[%clk 0:02:57.1]} 3. d4 {[%clk 0:02:56.3]} 3... cxd4 {[%clk 0:02:56.9]}
4. Qxd4 {[%clk 0:02:56.9]} 4... Nf6 {[%clk 0:02:57.4]} 5. Be3 {[%clk 0:02:55.7]}
5... Nc6 {[%clk 0:02:56.8]} 6. Qd2 {[%clk 0:02:56]} 6... d6 {[%clk 0:02:55.9]}
7. f3 {[%clk 0:02:56.2]} 7... Bg7 {[%clk 0:02:56.2]} 8. O-O-O {[%clk 0:02:56.9]}
8... O-O {[%clk 0:02:56.1]} 9. g4 {[%clk 0:02:57]} 9... Qa5 {[%clk 0:02:31]} 10.
Bh6 {[%clk 0:02:55]} 10... Be6 {[%clk 0:02:05]} 11. Kb1 {[%clk 0:02:53]} 11...
Rfc8 {[%clk 0:01:19.3]} 12. Bxg7 {[%clk 0:02:50.5]} 12... Kxg7 {[%clk
0:01:20.2]} 13. h4 {[%clk 0:02:51]} 13... Ne5 {[%clk 0:01:19.3]} 14. a3 {[%clk
0:02:46.8]} 14... Rab8 {[%clk 0:00:47.4]} 15. h5 {[%clk 0:02:43.1]} 15... b5
{[%clk 0:00:46.6]} 16. hxg6 {[%clk 0:02:43.6]} 16... fxg6 {[%clk 0:00:46.4]} 17.
g5 {[%clk 0:02:41.3]} 17... Nh5 {[%clk 0:00:44.2]} 18. f4 {[%clk 0:02:40.4]}
18... b4 {[%clk 0:00:19.6]} 19. Nd5 {[%clk 0:02:37.4]} 19... Bxd5 {[%clk
0:00:11.4]} 20. exd5 {[%clk 0:02:38.3]} 20... Nd7 {[%clk 0:00:07.4]} 21. Nf3
{[%clk 0:02:31.3]} 21... bxa3 {[%clk 0:00:02.6]} 22. Qxa5 {[%clk 0:02:30.8]} 1-0

[Event "Late-Titled-Tuesday-Blitz-April-16-2024"]
[Site "Chess.com"]
[Date "2024.04.16"]
[Round "6"]
[White "Godzillator"]
[Black "HipsterChess22"]
[Result "1-0"]
[WhiteElo "2362"]
[BlackElo "2236"]
[TimeControl "180+1"]
[EndTime "15:00:43 PDT"]
[Termination "Godzillator won on time"]

1. c4 {[%clk 0:03:00.9]} 1... c6 {[%clk 0:02:59.4]} 2. e4 {[%clk 0:02:59.2]}
2... d5 {[%clk 0:02:58.8]} 3. exd5 {[%clk 0:02:56.2]} 3... cxd5 {[%clk
0:02:59.7]} 4. cxd5 {[%clk 0:02:56.6]} 4... a6 {[%clk 0:02:58]} 5. Nc3 {[%clk
0:02:55.5]} 5... Nf6 {[%clk 0:02:56]} 6. d4 {[%clk 0:02:54.9]} 6... Nxd5 {[%clk
0:02:51.7]} 7. Nf3 {[%clk 0:02:55.2]} 7... g6 {[%clk 0:02:41]} 8. Bc4 {[%clk
0:02:54.8]} 8... Be6 {[%clk 0:02:32.8]} 9. Qb3 {[%clk 0:02:53.8]} 9... Nxc3
{[%clk 0:01:51.9]} 10. Bxe6 {[%clk 0:02:52.9]} 10... fxe6 {[%clk 0:01:49.7]} 11.
bxc3 {[%clk 0:02:50.4]} 11... Qd5 {[%clk 0:01:46.5]} 12. c4 {[%clk 0:02:50.6]}
12... Qe4+ {[%clk 0:01:41.7]} 13. Be3 {[%clk 0:02:50.6]} 13... Bg7 {[%clk
0:01:32.7]} 14. O-O {[%clk 0:02:50.5]} 14... O-O {[%clk 0:01:30.2]} 15. Ng5
{[%clk 0:02:42.7]} 15... Qc6 {[%clk 0:01:20.2]} 16. c5 {[%clk 0:02:41.6]} 16...
Rf6 {[%clk 0:01:12.7]} 17. Rfe1 {[%clk 0:02:38.5]} 17... Nd7 {[%clk 0:01:10.2]}
18. Rab1 {[%clk 0:02:33.2]} 18... h6 {[%clk 0:00:50.3]} 19. Nxe6 {[%clk
0:02:27.5]} 19... Qxe6 {[%clk 0:00:45]} 20. d5 {[%clk 0:02:23.6]} 20... Qf7
{[%clk 0:00:42]} 21. Qxb7 {[%clk 0:02:21.8]} 21... Rd8 {[%clk 0:00:24]} 22. c6
{[%clk 0:02:21.5]} 22... Ne5 {[%clk 0:00:17.6]} 23. c7 {[%clk 0:02:21.5]} 1-0

[Event "Late-Titled-Tuesday-Blitz-April-16-2024"]
[Site "Chess.com"]
[Date "2024.04.16"]
[Round "6"]
[White "Mariia89"]
[Black "shirovin"]
[Result "0-1"]
[WhiteElo "2222"]
[BlackElo "2051"]
[TimeControl "180+1"]
[EndTime "15:00:48 PDT"]
[Termination "shirovin won by resignation"]

1. d4 {[%clk 0:02:59.4]} 1... f5 {[%clk 0:02:58.6]} 2. g3 {[%clk 0:02:59.1]}
2... Nf6 {[%clk 0:02:57.7]} 3. Bg2 {[%clk 0:02:59.7]} 3... g6 {[%clk 0:02:57.2]}
4. Nf3 {[%clk 0:03:00.2]} 4... Bg7 {[%clk 0:02:57.7]} 5. O-O {[%clk 0:03:00.9]}
5... O-O {[%clk 0:02:57.7]} 6. c4 {[%clk 0:03:01.2]} 6... d6 {[%clk 0:02:58]} 7.
Nc3 {[%clk 0:03:01.8]} 7... Qe8 {[%clk 0:02:57.9]} 8. h3 {[%clk 0:02:58.7]} 8...
e5 {[%clk 0:02:56.5]} 9. e4 {[%clk 0:02:59]} 9... fxe4 {[%clk 0:02:50.5]} 10.
Ng5 {[%clk 0:02:55.3]} 10... h6 {[%clk 0:02:40.4]} 11. Ngxe4 {[%clk 0:02:54.7]}
11... Nxe4 {[%clk 0:02:40.5]} 12. Nxe4 {[%clk 0:02:50.3]} 12... exd4 {[%clk
0:02:38.4]} 13. Re1 {[%clk 0:02:47.6]} 13... Qd8 {[%clk 0:02:31]} 14. Qb3 {[%clk
0:02:38.9]} 14... Nc6 {[%clk 0:02:26]} 15. Bd2 {[%clk 0:02:33.1]} 15... Kh7
{[%clk 0:02:23]} 16. h4 {[%clk 0:02:27.5]} 16... Ne5 {[%clk 0:02:17.8]} 17. h5
{[%clk 0:02:24.8]} 17... g5 {[%clk 0:02:13.5]} 18. Rad1 {[%clk 0:01:38.9]} 18...
Bg4 {[%clk 0:02:10.6]} 19. Qc2 {[%clk 0:01:25.4]} 19... Kh8 {[%clk 0:02:01.9]}
20. Bc1 {[%clk 0:00:58.5]} 20... Nf3+ {[%clk 0:01:58.1]} 21. Kh1 {[%clk
0:00:45.2]} 21... Qe8 {[%clk 0:01:51]} 22. Bd2 {[%clk 0:00:40.7]} 22... Qxh5+
{[%clk 0:01:47.6]} 0-1

[Event "Late-Titled-Tuesday-Blitz-April-16-2024"]
[Site "Chess.com"]
[Date "2024.04.16"]
[Round "6"]
[White "Supelyel"]
[Black "CaspiIsrael"]
[Result "0-1"]
[WhiteElo "2431"]
[BlackElo "2713"]
[TimeControl "180+1"]
[EndTime "15:01:05 PDT"]
[Termination "CaspiIsrael won by resignation"]

1. c4 {[%clk 0:03:00.9]} 1... e6 {[%clk 0:02:55.8]} 2. Nc3 {[%clk 0:02:58.9]}
2... Bb4 {[%clk 0:02:54.7]} 3. Qc2 {[%clk 0:02:53.1]} 3... c5 {[%clk 0:02:53.9]}
4. Nf3 {[%clk 0:02:52.1]} 4... Nf6 {[%clk 0:02:53.9]} 5. a3 {[%clk 0:02:43.5]}
5... Ba5 {[%clk 0:02:53.6]} 6. d4 {[%clk 0:02:33.5]} 6... cxd4 {[%clk
0:02:53.1]} 7. Nxd4 {[%clk 0:02:33]} 7... O-O {[%clk 0:02:53.2]} 8. e3 {[%clk
0:02:32]} 8... Nc6 {[%clk 0:02:53.4]} 9. Bd3 {[%clk 0:02:13.8]} 9... d5 {[%clk
0:02:51.3]} 10. b4 {[%clk 0:02:10.2]} 10... dxc4 {[%clk 0:02:47.1]} 11. Bxh7+
{[%clk 0:01:28.5]} 11... Nxh7 {[%clk 0:02:45.8]} 12. Nxc6 {[%clk 0:01:27.8]}
12... bxc6 {[%clk 0:02:45.6]} 13. bxa5 {[%clk 0:01:27.9]} 13... Qd3 {[%clk
0:02:43.3]} 14. Ra2 {[%clk 0:01:08.1]} 14... Rd8 {[%clk 0:02:35.5]} 15. Bd2
{[%clk 0:01:06.5]} 15... Rb8 {[%clk 0:02:33]} 16. Rb2 {[%clk 0:00:50.5]} 16...
Ba6 {[%clk 0:02:30.4]} 17. f3 {[%clk 0:00:28.9]} 17... Nf6 {[%clk 0:02:24.4]}
18. e4 {[%clk 0:00:26.6]} 18... Rb3 {[%clk 0:02:09.7]} 19. Qxd3 {[%clk
0:00:19.3]} 19... Rxd3 {[%clk 0:02:09.2]} 20. Rxb3 {[%clk 0:00:19]} 20... cxb3
{[%clk 0:02:09.3]} 21. Kd1 {[%clk 0:00:18.2]} 21... Nd7 {[%clk 0:02:06.7]} 22.
Kc1 {[%clk 0:00:18.6]} 22... c5 {[%clk 0:02:04.3]} 23. Rd1 {[%clk 0:00:18.9]}
23... c4 {[%clk 0:02:03.9]} 24. Kb2 {[%clk 0:00:19.3]} 24... Nc5 {[%clk
0:02:02.9]} 25. Be1 {[%clk 0:00:19.9]} 25... Rxd1 {[%clk 0:02:02.4]} 26. Nxd1
{[%clk 0:00:20.8]} 26... Nd3+ {[%clk 0:02:02.8]} 27. Kc3 {[%clk 0:00:21.2]}
27... Nxe1 {[%clk 0:02:03.3]} 28. Nb2 {[%clk 0:00:20.1]} 28... Nxg2 {[%clk
0:02:02.6]} 29. Na4 {[%clk 0:00:19]} 29... Ne3 {[%clk 0:01:56.9]} 0-1

[Event "Late-Titled-Tuesday-Blitz-April-16-2024"]
[Site "Chess.com"]
[Date "2024.04.16"]
[Round "6"]
[White "ACollins05"]
[Black "Jahonas"]
[Result "1-0"]
[WhiteElo "2518"]
[BlackElo "2391"]
[TimeControl "180+1"]
[EndTime "15:01:22 PDT"]
[Termination "ACollins05 won by resignation"]

1. Nf3 {[%clk 0:03:00.9]} 1... d5 {[%clk 0:02:59.6]} 2. e3 {[%clk 0:02:57.9]}
2... Nf6 {[%clk 0:02:59.4]} 3. b3 {[%clk 0:02:58.4]} 3... c6 {[%clk 0:02:59.5]}
4. Bb2 {[%clk 0:02:59]} 4... Bg4 {[%clk 0:02:59.7]} 5. h3 {[%clk 0:02:58.6]}
5... Bh5 {[%clk 0:02:57.7]} 6. g4 {[%clk 0:02:59.1]} 6... Bg6 {[%clk 0:02:57.5]}
7. g5 {[%clk 0:02:57.9]} 7... Nfd7 {[%clk 0:02:53.5]} 8. h4 {[%clk 0:02:57.8]}
8... h5 {[%clk 0:02:49.7]} 9. Be2 {[%clk 0:02:57.8]} 9... Qc7 {[%clk 0:02:43.3]}
10. c4 {[%clk 0:02:57.5]} 10... e6 {[%clk 0:02:39.3]} 11. Nc3 {[%clk 0:02:57.6]}
11... Nc5 {[%clk 0:02:34.8]} 12. d3 {[%clk 0:02:54.4]} 12... dxc4 {[%clk
0:02:30.5]} 13. bxc4 {[%clk 0:02:51.7]} 13... Nba6 {[%clk 0:02:24.8]} 14. d4
{[%clk 0:02:51.3]} 14... Ne4 {[%clk 0:02:19.2]} 15. Nxe4 {[%clk 0:02:49.2]}
15... Bxe4 {[%clk 0:02:18.7]} 16. Bd3 {[%clk 0:02:49.8]} 16... Bb4+ {[%clk
0:02:12.1]} 17. Ke2 {[%clk 0:02:49.8]} 17... Bxd3+ {[%clk 0:02:01.7]} 18. Qxd3
{[%clk 0:02:50.7]} 18... O-O-O {[%clk 0:02:01.3]} 19. Rab1 {[%clk 0:02:47.1]}
19... g6 {[%clk 0:01:47.2]} 20. Qe4 {[%clk 0:02:41.2]} 20... Rhe8 {[%clk
0:01:37.4]} 21. c5 {[%clk 0:02:35.5]} 21... Qa5 {[%clk 0:01:34.3]} 22. a3 {[%clk
0:02:33.1]} 22... Bc3 {[%clk 0:01:27.4]} 23. Ne5 {[%clk 0:02:22.5]} 23... Qb5+
{[%clk 0:01:03.5]} 24. Qd3 {[%clk 0:02:17.3]} 24... Qxd3+ {[%clk 0:01:02.2]} 25.
Nxd3 {[%clk 0:02:18.2]} 25... Bxb2 {[%clk 0:01:02]} 26. Rxb2 {[%clk 0:02:19.1]}
26... Nc7 {[%clk 0:00:56]} 27. Rhb1 {[%clk 0:02:16.4]} 27... Nb5 {[%clk
0:00:51.2]} 28. Rb3 {[%clk 0:02:14.9]} 28... e5 {[%clk 0:00:07.2]} 29. a4 {[%clk
0:02:10.5]} 29... Nc7 {[%clk 0:00:06.7]} 30. Nxe5 {[%clk 0:02:05.8]} 30... Rxe5
{[%clk 0:00:06.6]} 31. dxe5 {[%clk 0:02:06]} 31... Rd5 {[%clk 0:00:06.9]} 32.
Rxb7 {[%clk 0:02:05.6]} 32... Rxc5 {[%clk 0:00:06.4]} 33. Rxa7 {[%clk
0:02:03.6]} 33... Rxe5 {[%clk 0:00:05]} 34. Rbb7 {[%clk 0:02:02]} 34... Nd5
{[%clk 0:00:05.2]} 35. Rxf7 {[%clk 0:02:00.1]} 1-0

[Event "Late-Titled-Tuesday-Blitz-April-16-2024"]
[Site "Chess.com"]
[Date "2024.04.16"]
[Round "6"]
[White "Vahe_Danielyan"]
[Black "Respectful_Dave"]
[Result "1-0"]
[WhiteElo "2646"]
[BlackElo "2401"]
[TimeControl "180+1"]
[EndTime "15:01:31 PDT"]
[Termination "Vahe_Danielyan won on time"]

1. e4 {[%clk 0:02:52.5]} 1... c6 {[%clk 0:02:59.7]} 2. d4 {[%clk 0:02:51.2]}
2... d5 {[%clk 0:03:00.2]} 3. Nc3 {[%clk 0:02:52.1]} 3... dxe4 {[%clk
0:02:56.9]} 4. Nxe4 {[%clk 0:02:53]} 4... Bf5 {[%clk 0:02:56.5]} 5. Ng3 {[%clk
0:02:50.5]} 5... Bg6 {[%clk 0:02:56.5]} 6. h4 {[%clk 0:02:51.4]} 6... h6 {[%clk
0:02:55.9]} 7. Nf3 {[%clk 0:02:52.3]} 7... Nd7 {[%clk 0:02:55.1]} 8. Bd3 {[%clk
0:02:51.2]} 8... Bxd3 {[%clk 0:02:49.7]} 9. Qxd3 {[%clk 0:02:52.1]} 9... Ngf6
{[%clk 0:02:48.9]} 10. Bf4 {[%clk 0:02:51.5]} 10... Qa5+ {[%clk 0:02:47.8]} 11.
Bd2 {[%clk 0:02:50.6]} 11... Qc7 {[%clk 0:02:45.3]} 12. O-O-O {[%clk 0:02:50.9]}
12... O-O-O {[%clk 0:02:36.6]} 13. Kb1 {[%clk 0:02:45.4]} 13... e6 {[%clk
0:02:34.6]} 14. Qe2 {[%clk 0:02:39.9]} 14... Bd6 {[%clk 0:02:10.2]} 15. Ne4
{[%clk 0:02:38.9]} 15... Nxe4 {[%clk 0:02:09.4]} 16. Qxe4 {[%clk 0:02:39.8]}
16... Nf6 {[%clk 0:02:09.1]} 17. Qe2 {[%clk 0:02:39.4]} 17... Kb8 {[%clk
0:02:00.3]} 18. Rhe1 {[%clk 0:02:37.8]} 18... Rd7 {[%clk 0:01:51.1]} 19. c4
{[%clk 0:02:36.5]} 19... Rhd8 {[%clk 0:01:50.7]} 20. Bc3 {[%clk 0:02:36.4]}
20... Ka8 {[%clk 0:01:25.4]} 21. g3 {[%clk 0:02:34.6]} 21... c5 {[%clk
0:01:24.2]} 22. d5 {[%clk 0:02:32.9]} 22... exd5 {[%clk 0:01:21.7]} 23. Bxf6
{[%clk 0:02:33.3]} 23... gxf6 {[%clk 0:01:19.2]} 24. Rxd5 {[%clk 0:02:34.2]}
24... a6 {[%clk 0:01:10.4]} 25. Red1 {[%clk 0:02:34]} 25... Be5 {[%clk
0:01:07.8]} 26. Nxe5 {[%clk 0:02:29.5]} 26... fxe5 {[%clk 0:01:07.2]} 27. Qe4
{[%clk 0:02:26.5]} 27... Rxd5 {[%clk 0:00:39.3]} 28. Rxd5 {[%clk 0:02:27.4]}
28... Rxd5 {[%clk 0:00:39.4]} 29. Qxd5 {[%clk 0:02:28.3]} 29... f6 {[%clk
0:00:18.7]} 30. Kc2 {[%clk 0:02:27]} 30... Ka7 {[%clk 0:00:16.2]} 31. Kd3 {[%clk
0:02:25.4]} 31... Qh7+ {[%clk 0:00:12.6]} 32. Ke3 {[%clk 0:02:25.6]} 32... Qe7
{[%clk 0:00:09.1]} 33. a4 {[%clk 0:02:23.7]} 33... a5 {[%clk 0:00:08.8]} 34. b3
{[%clk 0:02:23.4]} 34... b6 {[%clk 0:00:09.1]} 35. Kf3 {[%clk 0:02:22.3]} 35...
f5 {[%clk 0:00:08.5]} 36. Ke3 {[%clk 0:02:21.7]} 36... f4+ {[%clk 0:00:07]} 37.
Ke4 {[%clk 0:02:21.3]} 37... fxg3 {[%clk 0:00:06.9]} 38. fxg3 {[%clk 0:02:22.2]}
38... Qg7 {[%clk 0:00:04]} 39. Qxe5 {[%clk 0:02:22.3]} 39... Qg4+ {[%clk
0:00:04]} 40. Qf4 {[%clk 0:02:22.9]} 40... Qe2+ {[%clk 0:00:03.2]} 41. Qe3
{[%clk 0:02:23.2]} 41... Qg2+ {[%clk 0:00:01.9]} 42. Ke5 {[%clk 0:02:23.6]}
42... Qh3 {[%clk 0:00:02.2]} 43. Kf6 {[%clk 0:02:22.1]} 43... Qg4 {[%clk
0:00:01.7]} 44. Qf4 {[%clk 0:02:17.6]} 1-0

[Event "Late-Titled-Tuesday-Blitz-April-16-2024"]
[Site "Chess.com"]
[Date "2024.04.16"]
[Round "6"]
[White "prochn"]
[Black "Hasangatin_Ramil"]
[Result "0-1"]
[WhiteElo "2440"]
[BlackElo "2646"]
[TimeControl "180+1"]
[EndTime "15:01:43 PDT"]
[Termination "Hasangatin_Ramil won by resignation"]

1. d4 {[%clk 0:03:00.9]} 1... d6 {[%clk 0:02:55.1]} 2. Nf3 {[%clk 0:03:00.1]}
2... Bg4 {[%clk 0:02:54.7]} 3. g3 {[%clk 0:02:56.9]} 3... Bxf3 {[%clk
0:02:53.7]} 4. exf3 {[%clk 0:02:57.8]} 4... g6 {[%clk 0:02:53.5]} 5. Bg2 {[%clk
0:02:57.9]} 5... Bg7 {[%clk 0:02:54]} 6. O-O {[%clk 0:02:57.8]} 6... Nf6 {[%clk
0:02:54.2]} 7. Re1 {[%clk 0:02:56.3]} 7... O-O {[%clk 0:02:53.8]} 8. f4 {[%clk
0:02:56.5]} 8... c6 {[%clk 0:02:54]} 9. c3 {[%clk 0:02:51.7]} 9... e6 {[%clk
0:02:54]} 10. Bd2 {[%clk 0:02:51.7]} 10... d5 {[%clk 0:02:53.3]} 11. Na3 {[%clk
0:02:43.7]} 11... Qb6 {[%clk 0:02:49.3]} 12. Nc2 {[%clk 0:02:33.6]} 12... Nbd7
{[%clk 0:02:48.6]} 13. b4 {[%clk 0:02:32.5]} 13... a5 {[%clk 0:02:47.1]} 14. a3
{[%clk 0:02:31.6]} 14... Qc7 {[%clk 0:02:42.9]} 15. Ne3 {[%clk 0:02:29.1]} 15...
b5 {[%clk 0:02:39.9]} 16. h4 {[%clk 0:02:22.9]} 16... h5 {[%clk 0:02:34]} 17.
Qc2 {[%clk 0:02:16.5]} 17... Nb6 {[%clk 0:02:27.9]} 18. Bf1 {[%clk 0:02:00.7]}
18... Nc4 {[%clk 0:02:27.3]} 19. Nxc4 {[%clk 0:01:53.5]} 19... dxc4 {[%clk
0:02:27.2]} 20. Bg2 {[%clk 0:01:52.4]} 20... Ra6 {[%clk 0:02:24.4]} 21. Rac1
{[%clk 0:01:43.5]} 21... Rfa8 {[%clk 0:02:23.9]} 22. Re5 {[%clk 0:01:43]} 22...
axb4 {[%clk 0:02:08.8]} 23. axb4 {[%clk 0:01:42.3]} 23... Nd5 {[%clk 0:02:06.9]}
24. Ree1 {[%clk 0:01:02.6]} 24... Ra2 {[%clk 0:02:05]} 25. Qd1 {[%clk
0:01:02.6]} 25... Qa7 {[%clk 0:02:00]} 26. g4 {[%clk 0:01:00.9]} 26... hxg4
{[%clk 0:01:53.1]} 27. f5 {[%clk 0:00:12.6]} 27... exf5 {[%clk 0:01:48.4]} 28.
Bg5 {[%clk 0:00:11]} 28... Qa4 {[%clk 0:01:40.1]} 29. Qxa4 {[%clk 0:00:08.4]}
29... bxa4 {[%clk 0:01:37.7]} 30. Bf4 {[%clk 0:00:05.4]} 30... Nxf4 {[%clk
0:01:36.9]} 0-1